[Event "Titled Tuesday Blitz November 9 2021"]
[White "Dzhumagaliev, Yan"]
[Black "Siva Mahadevan"]
[WhiteFideId "24100110"]
[BlackFideId "25043153"]
[WhiteElo "2507"]
[BlackElo "2203"]
[Result "1/2-1/2"]
[Round "04"]
[TimeControl "180+1"]
[Date "2021.11.09"]
[WhiteClock "0:00:13"]
[BlackClock "0:00:21"]

1. Nf3 {[%clk 0:02:59]}  Nf6 {[%clk 0:02:59]} 2. h4 {[%clk 0:03:00]}  g6 {[%clk 0:03:00]} 3. d4 {[%clk 0:03:01]}  d6 {[%clk 0:02:58]} 4. c4 {[%clk 0:03:02]}  Bg7 {[%clk 0:02:58]} 5. Nc3 {[%clk 0:03:02]}  Bg4 {[%clk 0:02:58]} 6. Qb3 {[%clk 0:03:02]}  Qc8 {[%clk 0:02:58]} 7. Bg5 {[%clk 0:02:59]}  Nc6 {[%clk 0:02:49]} 8. d5 {[%clk 0:02:54]}  Nb8 {[%clk 0:02:45]} 9. Nd2 {[%clk 0:02:53]}  Na6 {[%clk 0:02:43]} 10. e4 {[%clk 0:02:50]}  Nc5 {[%clk 0:02:40]} 11. Qc2 {[%clk 0:02:51]}  a5 {[%clk 0:02:40]} 12. f3 {[%clk 0:02:51]}  Bd7 {[%clk 0:02:39]} 13. Be3 {[%clk 0:02:51]}  b6 {[%clk 0:02:31]} 14. Nb3 {[%clk 0:02:49]}  a4 {[%clk 0:02:26]} 15. Nd4 {[%clk 0:02:49]}  e5 {[%clk 0:02:23]} 16. dxe6 {[%clk 0:02:45]}  Nxe6 {[%clk 0:02:22]} 17. Rd1 {[%clk 0:02:38]}  h5 {[%clk 0:02:21]} 18. Nd5 {[%clk 0:02:31]}  Nxd5 {[%clk 0:02:18]} 19. cxd5 {[%clk 0:02:32]}  Nxd4 {[%clk 0:02:18]} 20. Bxd4 {[%clk 0:02:33]}  Bxd4 {[%clk 0:02:19]} 21. Rxd4 {[%clk 0:02:34]}  Ra5 {[%clk 0:02:14]} 22. Bd3 {[%clk 0:02:21]}  Qd8 {[%clk 0:02:10]} 23. Rc4 {[%clk 0:02:05]}  Rc5 {[%clk 0:02:09]} 24. b4 {[%clk 0:02:02]}  axb3 {[%clk 0:02:08]} 25. axb3 {[%clk 0:02:03]}  Qf6 {[%clk 0:02:07]} 26. Kf2 {[%clk 0:01:53]}  O-O {[%clk 0:02:07]} 27. b4 {[%clk 0:01:42]}  Rxc4 {[%clk 0:02:06]} 28. Qxc4 {[%clk 0:01:43]}  Ra8 {[%clk 0:02:07]} 29. Be2 {[%clk 0:01:19]}  Ra3 {[%clk 0:02:02]} 30. Qxc7 {[%clk 0:01:11]}  Qd4+ {[%clk 0:01:56]} 31. Kg3 {[%clk 0:01:11]}  Ra2 {[%clk 0:01:32]} 32. Qxd7 {[%clk 0:00:52]}  Rxe2 {[%clk 0:01:31]} 33. Kh3 {[%clk 0:00:29]}  Qf2 {[%clk 0:01:01]} 34. Rh2 {[%clk 0:00:30]}  Re3 {[%clk 0:00:35]} 35. Qd8+ {[%clk 0:00:30]}  Kg7 {[%clk 0:00:35]} 36. Qxd6 {[%clk 0:00:30]}  Rb3 {[%clk 0:00:30]} 37. Qe5+ {[%clk 0:00:29]}  Kg8 {[%clk 0:00:29]} 38. d6 {[%clk 0:00:28]}  Rd3 {[%clk 0:00:24]} 39. Qe8+ {[%clk 0:00:22]}  Kg7 {[%clk 0:00:24]} 40. Qe5+ {[%clk 0:00:23]}  Kg8 {[%clk 0:00:24]} 41. Rh1 {[%clk 0:00:18]}  Rxf3+ {[%clk 0:00:17]} 42. gxf3 {[%clk 0:00:11]}  Qxf3+ {[%clk 0:00:18]} 43. Kh2 {[%clk 0:00:12]}  Qf2+ {[%clk 0:00:19]} 44. Kh3 {[%clk 0:00:13]}  Qf3+ {[%clk 0:00:19]} 45. Kh2 {[%clk 0:00:13]}  Qf2+ {[%clk 0:00:20]} 46. Kh3 {[%clk 0:00:13]}  Qf3+ {[%clk 0:00:21]} 1/2-1/2


[Site "https://www.chess.com"]

[Event "Titled Tuesday Blitz November 9 2021"]
[White "Gaehwiler, Gabriel"]
[Black "Cunjalo, Faris"]
[WhiteFideId "1314530"]
[BlackFideId "14410710"]
[WhiteElo "2320"]
[BlackElo "2263"]
[Result "0-1"]
[Round "04"]
[TimeControl "180+1"]
[Date "2021.11.09"]
[WhiteClock "0:00:06"]
[BlackClock "0:00:11"]

1. d4 {[%clk 0:03:00]}  e6 {[%clk 0:02:56]} 2. g3 {[%clk 0:02:59]}  b5 {[%clk 0:02:54]} 3. Bg2 {[%clk 0:02:59]}  d5 {[%clk 0:02:54]} 4. Nf3 {[%clk 0:02:57]}  Nf6 {[%clk 0:02:54]} 5. O-O {[%clk 0:02:56]}  Nbd7 {[%clk 0:02:54]} 6. Nbd2 {[%clk 0:02:55]}  Be7 {[%clk 0:02:51]} 7. b3 {[%clk 0:02:54]}  c5 {[%clk 0:02:51]} 8. dxc5 {[%clk 0:02:53]}  Nxc5 {[%clk 0:02:51]} 9. Bb2 {[%clk 0:02:53]}  O-O {[%clk 0:02:50]} 10. Ne5 {[%clk 0:02:52]}  Bb7 {[%clk 0:02:50]} 11. c4 {[%clk 0:02:48]}  a6 {[%clk 0:02:30]} 12. Rc1 {[%clk 0:02:40]}  Rc8 {[%clk 0:02:17]} 13. Nd3 {[%clk 0:02:13]}  Nxd3 {[%clk 0:01:28]} 14. exd3 {[%clk 0:02:14]}  Qb6 {[%clk 0:01:26]} 15. Qe2 {[%clk 0:02:09]}  Rfd8 {[%clk 0:01:19]} 16. Rfd1 {[%clk 0:02:03]}  h6 {[%clk 0:01:19]} 17. h3 {[%clk 0:01:58]}  Qa5 {[%clk 0:01:14]} 18. Ra1 {[%clk 0:01:37]}  Qb6 {[%clk 0:01:05]} 19. Rac1 {[%clk 0:01:36]}  Ba8 {[%clk 0:01:06]} 20. a3 {[%clk 0:01:28]}  a5 {[%clk 0:00:52]} 21. Kh1 {[%clk 0:01:07]}  Bb7 {[%clk 0:00:49]} 22. Kh2 {[%clk 0:01:07]}  dxc4 {[%clk 0:00:23]} 23. dxc4 {[%clk 0:00:53]}  Bxg2 {[%clk 0:00:22]} 24. Kxg2 {[%clk 0:00:53]}  bxc4 {[%clk 0:00:23]} 25. Bxf6 {[%clk 0:00:27]}  Bxf6 {[%clk 0:00:22]} 26. bxc4 {[%clk 0:00:26]}  Qb2 {[%clk 0:00:19]} 27. Qe3 {[%clk 0:00:15]}  Bd4 {[%clk 0:00:17]} 28. Qb3 {[%clk 0:00:13]}  a4 {[%clk 0:00:12]} 29. Qxa4 {[%clk 0:00:09]}  Bxf2 {[%clk 0:00:12]} 30. Qc2 {[%clk 0:00:07]}  Qxc2 {[%clk 0:00:09]} 31. Rxc2 {[%clk 0:00:08]}  Be3 {[%clk 0:00:09]} 32. Kf3 {[%clk 0:00:06]}  Bxd2 {[%clk 0:00:09]} 33. Rdxd2 {[%clk 0:00:06]}  Rxd2 {[%clk 0:00:10]} 34. Rxd2 {[%clk 0:00:07]}  Rxc4 {[%clk 0:00:11]} 35. Ra2 {[%clk 0:00:08]}  Ra4 {[%clk 0:00:11]} 36. Ke3 {[%clk 0:00:09]}  g5 {[%clk 0:00:11]} 37. Kd3 {[%clk 0:00:09]}  f5 {[%clk 0:00:12]} 38. Kc3 {[%clk 0:00:10]}  Kf7 {[%clk 0:00:12]} 39. Kb3 {[%clk 0:00:10]}  Ra8 {[%clk 0:00:13]} 40. a4 {[%clk 0:00:11]}  Kf6 {[%clk 0:00:12]} 41. a5 {[%clk 0:00:11]}  f4 {[%clk 0:00:13]} 42. gxf4 {[%clk 0:00:11]}  gxf4 {[%clk 0:00:14]} 43. Kc4 {[%clk 0:00:11]}  Kf5 {[%clk 0:00:14]} 44. a6 {[%clk 0:00:11]}  Ra7 {[%clk 0:00:13]} 45. Kc5 {[%clk 0:00:08]}  e5 {[%clk 0:00:14]} 46. Kb6 {[%clk 0:00:09]}  Ra8 {[%clk 0:00:14]} 47. a7 {[%clk 0:00:09]}  f3 {[%clk 0:00:14]} 48. Kc5 {[%clk 0:00:09]}  Kf4 {[%clk 0:00:14]} 49. Kd5 {[%clk 0:00:08]}  e4 {[%clk 0:00:13]} 50. Kd4 {[%clk 0:00:06]}  e3 {[%clk 0:00:13]} 51. Ra6 {[%clk 0:00:06]}  e2 {[%clk 0:00:11]} 52. Rf6+ {[%clk 0:00:06]}  Kg3 {[%clk 0:00:11]} 0-1


[Site "https://www.chess.com"]

[Event "Titled Tuesday Blitz November 9 2021"]
[White "Grachev, Boris"]
[Black "Maltsevskaya, Aleksandra"]
[WhiteFideId "4129199"]
[BlackFideId "24174041"]
[WhiteElo "2555"]
[BlackElo "2285"]
[Result "1-0"]
[Round "04"]
[TimeControl "180+1"]
[Date "2021.11.09"]
[WhiteClock "0:01:19"]
[BlackClock "0:00:01"]

1. d4 {[%clk 0:03:00]}  Nf6 {[%clk 0:02:58]} 2. Bf4 {[%clk 0:03:01]}  b6 {[%clk 0:02:56]} 3. e3 {[%clk 0:03:01]}  Bb7 {[%clk 0:02:56]} 4. c4 {[%clk 0:03:02]}  g6 {[%clk 0:02:55]} 5. Nc3 {[%clk 0:03:02]}  Bg7 {[%clk 0:02:55]} 6. h3 {[%clk 0:03:02]}  O-O {[%clk 0:02:55]} 7. Nf3 {[%clk 0:03:03]}  d6 {[%clk 0:02:55]} 8. Be2 {[%clk 0:03:01]}  Nbd7 {[%clk 0:02:52]} 9. O-O {[%clk 0:03:01]}  Ne4 {[%clk 0:02:52]} 10. Bh2 {[%clk 0:02:53]}  e5 {[%clk 0:02:49]} 11. Nd5 {[%clk 0:02:50]}  exd4 {[%clk 0:02:46]} 12. exd4 {[%clk 0:02:47]}  Re8 {[%clk 0:02:42]} 13. Bd3 {[%clk 0:02:44]}  Ng5 {[%clk 0:02:29]} 14. Be2 {[%clk 0:02:30]}  Ne6 {[%clk 0:01:48]} 15. Rc1 {[%clk 0:02:20]}  Nf6 {[%clk 0:01:43]} 16. Nc3 {[%clk 0:02:16]}  Ne4 {[%clk 0:01:42]} 17. d5 {[%clk 0:02:05]}  Nxc3 {[%clk 0:01:41]} 18. bxc3 {[%clk 0:02:06]}  Nc5 {[%clk 0:01:37]} 19. Nd4 {[%clk 0:02:06]}  Qg5 {[%clk 0:01:33]} 20. Bf3 {[%clk 0:02:01]}  Re7 {[%clk 0:01:24]} 21. Rc2 {[%clk 0:01:58]}  Rae8 {[%clk 0:01:22]} 22. Re2 {[%clk 0:01:56]}  Ba6 {[%clk 0:01:19]} 23. Rxe7 {[%clk 0:01:53]}  Qxe7 {[%clk 0:01:20]} 24. Nb5 {[%clk 0:01:43]}  Bxb5 {[%clk 0:01:13]} 25. cxb5 {[%clk 0:01:44]}  Bxc3 {[%clk 0:01:13]} 26. Bf4 {[%clk 0:01:44]}  Qf6 {[%clk 0:00:50]} 27. Be3 {[%clk 0:01:43]}  h5 {[%clk 0:00:49]} 28. Qc1 {[%clk 0:01:40]}  Nd3 {[%clk 0:00:42]} 29. Qa3 {[%clk 0:01:38]}  Ne1 {[%clk 0:00:06]} 30. Bd1 {[%clk 0:01:26]}  Nd3 {[%clk 0:00:01]} 31. Qxa7 {[%clk 0:01:19]} 1-0


[Site "https://www.chess.com"]

[Event "Titled Tuesday Blitz November 9 2021"]
[White "Jobava, Baadur"]
[Black "Khanin, Semen"]
[WhiteFideId "13601520"]
[BlackFideId "4111990"]
[WhiteElo "2731"]
[BlackElo "2442"]
[Result "1-0"]
[Round "04"]
[TimeControl "180+1"]
[Date "2021.11.09"]
[WhiteClock "0:00:25"]
[BlackClock "0:00:01"]

1. e4 {[%clk 0:03:00]}  e5 {[%clk 0:02:59]} 2. d4 {[%clk 0:02:59]}  exd4 {[%clk 0:02:59]} 3. Nf3 {[%clk 0:03:00]}  Nc6 {[%clk 0:02:59]} 4. Nxd4 {[%clk 0:03:00]}  Nf6 {[%clk 0:02:58]} 5. Nxc6 {[%clk 0:02:59]}  bxc6 {[%clk 0:02:58]} 6. Bd3 {[%clk 0:03:00]}  d6 {[%clk 0:02:54]} 7. O-O {[%clk 0:02:59]}  Be7 {[%clk 0:02:53]} 8. Re1 {[%clk 0:02:59]}  O-O {[%clk 0:02:54]} 9. Nd2 {[%clk 0:02:59]}  Rb8 {[%clk 0:02:53]} 10. h3 {[%clk 0:02:58]}  c5 {[%clk 0:02:53]} 11. b3 {[%clk 0:02:57]}  Nd7 {[%clk 0:02:51]} 12. Bb2 {[%clk 0:02:57]}  Bf6 {[%clk 0:02:51]} 13. Bxf6 {[%clk 0:02:57]}  Qxf6 {[%clk 0:02:51]} 14. Nc4 {[%clk 0:02:50]}  Ne5 {[%clk 0:02:50]} 15. Ne3 {[%clk 0:02:50]}  Be6 {[%clk 0:02:48]} 16. Rf1 {[%clk 0:02:44]}  g5 {[%clk 0:02:47]} 17. Be2 {[%clk 0:02:42]}  Rfe8 {[%clk 0:02:38]} 18. Qd2 {[%clk 0:02:41]}  Ng6 {[%clk 0:02:36]} 19. Bg4 {[%clk 0:02:38]}  h6 {[%clk 0:02:09]} 20. Rae1 {[%clk 0:02:35]}  Kg7 {[%clk 0:01:56]} 21. Qa5 {[%clk 0:02:30]}  Rb7 {[%clk 0:01:41]} 22. Qa6 {[%clk 0:02:19]}  Reb8 {[%clk 0:01:36]} 23. Bf5 {[%clk 0:02:01]}  Nf4 {[%clk 0:01:24]} 24. g3 {[%clk 0:01:56]}  Ng6 {[%clk 0:01:15]} 25. Kg2 {[%clk 0:01:54]}  Bxf5 {[%clk 0:01:09]} 26. Nxf5+ {[%clk 0:01:53]}  Kh7 {[%clk 0:01:09]} 27. Re3 {[%clk 0:01:46]}  Ne5 {[%clk 0:01:07]} 28. f4 {[%clk 0:01:39]}  Ng6 {[%clk 0:01:05]} 29. fxg5 {[%clk 0:01:35]}  Qxg5 {[%clk 0:01:06]} 30. Qe2 {[%clk 0:01:25]}  Ne5 {[%clk 0:01:03]} 31. Rf4 {[%clk 0:01:21]}  Rg8 {[%clk 0:01:00]} 32. Rh4 {[%clk 0:01:06]}  Rg6 {[%clk 0:01:00]} 33. Qa6 {[%clk 0:01:06]}  Rb4 {[%clk 0:00:48]} 34. Qxa7 {[%clk 0:00:59]}  Rd4 {[%clk 0:00:48]} 35. Qa5 {[%clk 0:00:52]}  Rd1 {[%clk 0:00:38]} 36. Qc3 {[%clk 0:00:51]}  Rf6 {[%clk 0:00:31]} 37. Rf4 {[%clk 0:00:48]}  Rg6 {[%clk 0:00:14]} 38. Rf1 {[%clk 0:00:47]}  Rxf1 {[%clk 0:00:13]} 39. Kxf1 {[%clk 0:00:48]}  Qh5 {[%clk 0:00:14]} 40. g4 {[%clk 0:00:47]}  Qg5 {[%clk 0:00:13]} 41. Qe1 {[%clk 0:00:41]}  h5 {[%clk 0:00:13]} 42. Qh4 {[%clk 0:00:39]}  Qf4+ {[%clk 0:00:12]} 43. Ke2 {[%clk 0:00:38]}  Rg5 {[%clk 0:00:09]} 44. a4 {[%clk 0:00:37]}  Ng6 {[%clk 0:00:08]} 45. Qg3 {[%clk 0:00:36]}  hxg4 {[%clk 0:00:08]} 46. hxg4 {[%clk 0:00:35]}  Rxg4 {[%clk 0:00:08]} 47. Qxf4 {[%clk 0:00:35]}  Rxf4 {[%clk 0:00:08]} 48. a5 {[%clk 0:00:33]}  Ne5 {[%clk 0:00:07]} 49. Ne7 {[%clk 0:00:31]}  Rg4 {[%clk 0:00:05]} 50. a6 {[%clk 0:00:28]}  Rg2+ {[%clk 0:00:05]} 51. Kd1 {[%clk 0:00:26]}  Rg1+ {[%clk 0:00:05]} 52. Re1 {[%clk 0:00:26]}  Rg2 {[%clk 0:00:01]} 53. a7 {[%clk 0:00:25]} 1-0


[Site "https://www.chess.com"]

[Event "Titled Tuesday Blitz November 9 2021"]
[White "Kamsky, Gata"]
[Black "Shimelkov, Vasiliy"]
[WhiteFideId "2000024"]
[BlackFideId "13701630"]
[WhiteElo "2645"]
[BlackElo "2073"]
[Result "1-0"]
[Round "04"]
[TimeControl "180+1"]
[Date "2021.11.09"]
[WhiteClock "0:00:40"]
[BlackClock "0:00:26"]

1. e4 {[%clk 0:03:00]}  c6 {[%clk 0:03:00]} 2. d3 {[%clk 0:02:58]}  d5 {[%clk 0:03:00]} 3. Nf3 {[%clk 0:02:59]}  g6 {[%clk 0:02:59]} 4. e5 {[%clk 0:02:57]}  Bg7 {[%clk 0:02:57]} 5. d4 {[%clk 0:02:57]}  Bf5 {[%clk 0:02:53]} 6. c4 {[%clk 0:02:43]}  e6 {[%clk 0:02:52]} 7. Nc3 {[%clk 0:02:41]}  Ne7 {[%clk 0:02:50]} 8. h4 {[%clk 0:02:39]}  h5 {[%clk 0:02:47]} 9. Bg5 {[%clk 0:02:36]}  O-O {[%clk 0:02:39]} 10. cxd5 {[%clk 0:02:32]}  cxd5 {[%clk 0:02:37]} 11. Bd3 {[%clk 0:02:30]}  Bxd3 {[%clk 0:02:29]} 12. Qxd3 {[%clk 0:02:30]}  Nbc6 {[%clk 0:02:29]} 13. O-O {[%clk 0:02:29]}  Qb6 {[%clk 0:02:26]} 14. Na4 {[%clk 0:02:23]}  Qa5 {[%clk 0:02:26]} 15. b3 {[%clk 0:02:21]}  Rfc8 {[%clk 0:02:21]} 16. Rfc1 {[%clk 0:02:19]}  b5 {[%clk 0:02:12]} 17. Nc5 {[%clk 0:02:11]}  Nf5 {[%clk 0:02:08]} 18. a3 {[%clk 0:02:01]}  b4 {[%clk 0:01:58]} 19. axb4 {[%clk 0:01:54]}  Qxb4 {[%clk 0:01:57]} 20. Ra4 {[%clk 0:01:49]}  Qb6 {[%clk 0:01:53]} 21. Nd7 {[%clk 0:01:47]}  Qb7 {[%clk 0:01:49]} 22. Nf6+ {[%clk 0:01:48]}  Kh8 {[%clk 0:01:42]} 23. g4 {[%clk 0:01:45]}  hxg4 {[%clk 0:01:39]} 24. Nxg4 {[%clk 0:01:43]}  Rab8 {[%clk 0:01:34]} 25. Ra3 {[%clk 0:01:05]}  Nb4 {[%clk 0:01:29]} 26. Qd1 {[%clk 0:01:01]}  Rxc1 {[%clk 0:01:20]} 27. Bxc1 {[%clk 0:01:00]}  Rc8 {[%clk 0:01:08]} 28. Bd2 {[%clk 0:00:58]}  Nd3 {[%clk 0:01:04]} 29. Qe2 {[%clk 0:00:51]}  Nc1 {[%clk 0:01:01]} 30. Qd1 {[%clk 0:00:47]}  Nd3 {[%clk 0:01:00]} 31. Kg2 {[%clk 0:00:44]}  Qe7 {[%clk 0:00:54]} 32. b4 {[%clk 0:00:41]}  Nxb4 {[%clk 0:00:50]} 33. Bg5 {[%clk 0:00:41]}  Qb7 {[%clk 0:00:47]} 34. h5 {[%clk 0:00:41]}  gxh5 {[%clk 0:00:42]} 35. Qh1 {[%clk 0:00:41]}  Kg8 {[%clk 0:00:40]} 36. Qxh5 {[%clk 0:00:41]}  Kf8 {[%clk 0:00:37]} 37. Nf6 {[%clk 0:00:41]}  Ke7 {[%clk 0:00:32]} 38. Nxd5+ {[%clk 0:00:39]}  Ke8 {[%clk 0:00:27]} 39. Nxb4 {[%clk 0:00:39]}  Qxb4 {[%clk 0:00:26]} 40. Rxa7 {[%clk 0:00:40]} 1-0


[Site "https://www.chess.com"]

[Event "Titled Tuesday Blitz November 9 2021"]
[White "Llorente Zaro, Alfonso"]
[Black "Hakobyan, Aram"]
[WhiteFideId "2254131"]
[BlackFideId "13306677"]
[WhiteElo "2480"]
[BlackElo "2557"]
[Result "1/2-1/2"]
[Round "04"]
[TimeControl "180+1"]
[Date "2021.11.09"]
[WhiteClock "0:00:08"]
[BlackClock "0:00:07"]

1. b3 {[%clk 0:02:58]}  e5 {[%clk 0:02:58]} 2. Bb2 {[%clk 0:02:58]}  Nc6 {[%clk 0:02:59]} 3. e3 {[%clk 0:02:58]}  d5 {[%clk 0:02:58]} 4. Bb5 {[%clk 0:02:58]}  Ne7 {[%clk 0:02:58]} 5. Bxe5 {[%clk 0:02:56]}  a6 {[%clk 0:02:59]} 6. Bxc6+ {[%clk 0:02:56]}  Nxc6 {[%clk 0:03:00]} 7. Bb2 {[%clk 0:02:56]}  Qg5 {[%clk 0:02:59]} 8. Qf3 {[%clk 0:02:51]}  Bd6 {[%clk 0:02:34]} 9. Nh3 {[%clk 0:02:45]}  Qg6 {[%clk 0:02:28]} 10. O-O {[%clk 0:02:04]}  Bg4 {[%clk 0:02:18]} 11. Nf4 {[%clk 0:02:04]}  Bxf3 {[%clk 0:02:10]} 12. Nxg6 {[%clk 0:02:04]}  hxg6 {[%clk 0:01:47]} 13. gxf3 {[%clk 0:02:03]}  Rxh2 {[%clk 0:01:47]} 14. f4 {[%clk 0:01:46]}  Rh7 {[%clk 0:01:34]} 15. Kg2 {[%clk 0:01:46]}  Kd7 {[%clk 0:01:27]} 16. Nc3 {[%clk 0:01:45]}  Ne7 {[%clk 0:01:16]} 17. Rh1 {[%clk 0:01:41]}  Rah8 {[%clk 0:01:17]} 18. Rxh7 {[%clk 0:01:40]}  Rxh7 {[%clk 0:01:18]} 19. Ne2 {[%clk 0:01:40]}  f6 {[%clk 0:01:16]} 20. c4 {[%clk 0:01:33]}  c5 {[%clk 0:01:10]} 21. d3 {[%clk 0:01:17]}  Ke6 {[%clk 0:01:01]} 22. Rd1 {[%clk 0:01:09]}  Rh5 {[%clk 0:00:59]} 23. Ng3 {[%clk 0:01:08]}  Rh8 {[%clk 0:01:00]} 24. cxd5+ {[%clk 0:00:59]}  Nxd5 {[%clk 0:00:57]} 25. Ne4 {[%clk 0:00:59]}  Be7 {[%clk 0:00:47]} 26. Ba3 {[%clk 0:00:57]}  b6 {[%clk 0:00:43]} 27. d4 {[%clk 0:00:56]}  f5 {[%clk 0:00:32]} 28. Ng3 {[%clk 0:00:51]}  cxd4 {[%clk 0:00:31]} 29. Bxe7 {[%clk 0:00:52]}  Nxe7 {[%clk 0:00:29]} 30. Rxd4 {[%clk 0:00:51]}  Rc8 {[%clk 0:00:29]} 31. Rd2 {[%clk 0:00:50]}  Nd5 {[%clk 0:00:26]} 32. Ne2 {[%clk 0:00:50]}  Nf6 {[%clk 0:00:23]} 33. Nd4+ {[%clk 0:00:50]}  Ke7 {[%clk 0:00:23]} 34. Nf3 {[%clk 0:00:36]}  Ne4 {[%clk 0:00:22]} 35. Re2 {[%clk 0:00:36]}  Ke6 {[%clk 0:00:21]} 36. Nd4+ {[%clk 0:00:32]}  Kf6 {[%clk 0:00:20]} 37. f3 {[%clk 0:00:31]}  Nc3 {[%clk 0:00:16]} 38. Rc2 {[%clk 0:00:31]}  Rc7 {[%clk 0:00:16]} 39. Kf2 {[%clk 0:00:28]}  Nd1+ {[%clk 0:00:14]} 40. Ke2 {[%clk 0:00:28]}  Rxc2+ {[%clk 0:00:14]} 41. Nxc2 {[%clk 0:00:28]}  Nc3+ {[%clk 0:00:15]} 42. Kd3 {[%clk 0:00:22]}  Nxa2 {[%clk 0:00:16]} 43. Kc4 {[%clk 0:00:17]}  g5 {[%clk 0:00:13]} 44. fxg5+ {[%clk 0:00:15]}  Kxg5 {[%clk 0:00:14]} 45. b4 {[%clk 0:00:15]}  Kf6 {[%clk 0:00:09]} 46. f4 {[%clk 0:00:12]}  a5 {[%clk 0:00:06]} 47. bxa5 {[%clk 0:00:11]}  bxa5 {[%clk 0:00:07]} 48. Kb3 {[%clk 0:00:11]}  Nc1+ {[%clk 0:00:06]} 49. Ka4 {[%clk 0:00:11]}  Ke6 {[%clk 0:00:07]} 50. Nd4+ {[%clk 0:00:11]}  Kf6 {[%clk 0:00:07]} 51. Kxa5 {[%clk 0:00:11]}  Nd3 {[%clk 0:00:07]} 52. Kb5 {[%clk 0:00:10]}  Nf2 {[%clk 0:00:07]} 53. Kc4 {[%clk 0:00:10]}  Ng4 {[%clk 0:00:07]} 54. Kd3 {[%clk 0:00:09]}  g6 {[%clk 0:00:07]} 55. Ke2 {[%clk 0:00:08]}  Kf7 {[%clk 0:00:08]} 56. Nf3 {[%clk 0:00:08]}  Nf6 {[%clk 0:00:08]} 57. Ne5+ {[%clk 0:00:08]}  Kg7 {[%clk 0:00:09]} 58. Kf3 {[%clk 0:00:09]}  Ne4 {[%clk 0:00:10]} 59. Nd3 {[%clk 0:00:09]}  Kf6 {[%clk 0:00:10]} 60. Ne5 {[%clk 0:00:08]}  Nd2+ {[%clk 0:00:11]} 61. Ke2 {[%clk 0:00:08]}  Ne4 {[%clk 0:00:12]} 62. Nf3 {[%clk 0:00:08]}  Ke6 {[%clk 0:00:11]} 63. Nh4 {[%clk 0:00:07]}  Kf7 {[%clk 0:00:11]} 64. Nf3 {[%clk 0:00:08]}  Kf6 {[%clk 0:00:12]} 65. Kd3 {[%clk 0:00:08]}  Ng3 {[%clk 0:00:12]} 66. Nh4 {[%clk 0:00:06]}  Nh5 {[%clk 0:00:11]} 67. Kd4 {[%clk 0:00:05]}  Ng3 {[%clk 0:00:11]} 68. Kd3 {[%clk 0:00:05]}  Kf7 {[%clk 0:00:11]} 69. Nf3 {[%clk 0:00:06]}  Ne4 {[%clk 0:00:10]} 70. Ne5+ {[%clk 0:00:06]}  Kf6 {[%clk 0:00:10]} 71. Nf3 {[%clk 0:00:06]}  Nd6 {[%clk 0:00:10]} 72. Kd4 {[%clk 0:00:07]}  Nb5+ {[%clk 0:00:09]} 73. Kd3 {[%clk 0:00:07]}  Nd6 {[%clk 0:00:08]} 74. Ng5 {[%clk 0:00:07]}  Ke7 {[%clk 0:00:04]} 75. e4 {[%clk 0:00:07]}  fxe4+ {[%clk 0:00:04]} 76. Nxe4 {[%clk 0:00:08]}  Nf5 {[%clk 0:00:05]} 77. Ng5 {[%clk 0:00:08]}  Kf6 {[%clk 0:00:05]} 78. Nf3 {[%clk 0:00:08]}  Ng7 {[%clk 0:00:05]} 79. Nh4 {[%clk 0:00:08]}  Ne6 {[%clk 0:00:05]} 80. Nxg6 {[%clk 0:00:08]}  Kf5 {[%clk 0:00:06]} 81. Kc4 {[%clk 0:00:07]}  Kxg6 {[%clk 0:00:05]} 82. f5+ {[%clk 0:00:08]}  Kf6 {[%clk 0:00:06]} 83. fxe6 {[%clk 0:00:08]}  Kxe6 {[%clk 0:00:07]} 1/2-1/2


[Site "https://www.chess.com"]

[Event "Titled Tuesday Blitz November 9 2021"]
[White "Macovei, Andrei"]
[Black "Belous, Vladimir"]
[WhiteFideId "13904680"]
[BlackFideId "4174003"]
[WhiteElo "2389"]
[BlackElo "2510"]
[Result "1-0"]
[Round "04"]
[TimeControl "180+1"]
[Date "2021.11.09"]
[WhiteClock "0:00:14"]
[BlackClock "0:00:12"]

1. e4 {[%clk 0:03:00]}  c5 {[%clk 0:03:00]} 2. Nf3 {[%clk 0:03:00]}  Nc6 {[%clk 0:03:00]} 3. Bb5 {[%clk 0:03:00]}  g6 {[%clk 0:03:01]} 4. O-O {[%clk 0:03:00]}  Bg7 {[%clk 0:03:01]} 5. Nc3 {[%clk 0:03:00]}  d6 {[%clk 0:02:57]} 6. e5 {[%clk 0:02:56]}  Bd7 {[%clk 0:02:51]} 7. exd6 {[%clk 0:02:53]}  exd6 {[%clk 0:02:52]} 8. Re1+ {[%clk 0:02:53]}  Nge7 {[%clk 0:02:51]} 9. d3 {[%clk 0:02:32]}  O-O {[%clk 0:02:50]} 10. Bf4 {[%clk 0:02:27]}  Bg4 {[%clk 0:02:48]} 11. h3 {[%clk 0:02:23]}  Bxf3 {[%clk 0:02:47]} 12. Qxf3 {[%clk 0:02:24]}  Nd4 {[%clk 0:02:47]} 13. Qd1 {[%clk 0:02:24]}  a6 {[%clk 0:02:40]} 14. Bc4 {[%clk 0:02:19]}  b5 {[%clk 0:02:38]} 15. Bb3 {[%clk 0:02:17]}  Rc8 {[%clk 0:02:29]} 16. Nd5 {[%clk 0:02:04]}  Nxd5 {[%clk 0:02:01]} 17. Bxd5 {[%clk 0:02:04]}  Qf6 {[%clk 0:01:56]} 18. Be3 {[%clk 0:01:40]}  Nf5 {[%clk 0:01:42]} 19. c3 {[%clk 0:01:38]}  Rfe8 {[%clk 0:01:30]} 20. Qd2 {[%clk 0:01:30]}  Re5 {[%clk 0:01:21]} 21. Bg5 {[%clk 0:01:19]}  Qxg5 {[%clk 0:01:18]} 22. Qxg5 {[%clk 0:01:19]}  Rxd5 {[%clk 0:01:18]} 23. Qd2 {[%clk 0:01:07]}  a5 {[%clk 0:01:11]} 24. Re4 {[%clk 0:01:05]}  Bf6 {[%clk 0:01:07]} 25. Rae1 {[%clk 0:01:04]}  Kg7 {[%clk 0:01:08]} 26. Qc2 {[%clk 0:00:56]}  b4 {[%clk 0:01:04]} 27. Rc4 {[%clk 0:00:40]}  Rb8 {[%clk 0:00:53]} 28. a3 {[%clk 0:00:27]}  h5 {[%clk 0:00:48]} 29. axb4 {[%clk 0:00:26]}  axb4 {[%clk 0:00:48]} 30. g3 {[%clk 0:00:24]}  b3 {[%clk 0:00:43]} 31. Qe2 {[%clk 0:00:22]}  Re5 {[%clk 0:00:38]} 32. Re4 {[%clk 0:00:21]}  Ra8 {[%clk 0:00:28]} 33. g4 {[%clk 0:00:17]}  hxg4 {[%clk 0:00:27]} 34. hxg4 {[%clk 0:00:18]}  Nh4 {[%clk 0:00:19]} 35. f4 {[%clk 0:00:18]}  Rxe4 {[%clk 0:00:16]} 36. Qxe4 {[%clk 0:00:18]}  Ra2 {[%clk 0:00:16]} 37. Re2 {[%clk 0:00:18]}  g5 {[%clk 0:00:14]} 38. fxg5 {[%clk 0:00:15]}  Bxg5 {[%clk 0:00:14]} 39. Qd5 {[%clk 0:00:16]}  Bf6 {[%clk 0:00:13]} 40. Qxb3 {[%clk 0:00:16]}  Ra1+ {[%clk 0:00:13]} 41. Kf2 {[%clk 0:00:16]}  Rh1 {[%clk 0:00:12]} 42. Qd5 {[%clk 0:00:14]}  Rh2+ {[%clk 0:00:12]} 43. Ke1 {[%clk 0:00:14]}  Rh1+ {[%clk 0:00:12]} 44. Qxh1 {[%clk 0:00:14]} 1-0


[Site "https://www.chess.com"]